Cogmind - Beta 9.6 --- EXPLORER MODE // 2020.06.16 @ 14:28:49 Player: SHADOWELITE7 Result: Destroyed by G-47 Trooper with Particle Gun Performance ------------- Evolutions (2) 1000 Regions Visited (7) 1400 Robots Destroyed (70) 350 Value Destroyed (1899) 1899 Prototype IDs (23) 460 Alien Tech Used (0) 0 Bonus (700) 700 TOTAL SCORE: 5809 Bonus ------- Pacifist 200 Entered Garrisons 200 Aligned with FarCom 300 Cogmind --------- Core Integrity 0/550 Matter 300/300 Energy 100/100 System Corruption 0% Temperature Cool (9) Movement Core (700) Ox13 Location -8/Garrison Parts ------- > --- POWER (2) -------- (None) > --- PROPULSION (3) --- (None) > --- UTILITY (4) ------ Medium Storage Unit Large Storage Unit Large Storage Unit > --- WEAPON (3) ------- (None) > --- INVENTORY (20) --- Flying Fortress v7 Humpback Recoil Stabilizer Peak State ------------ > --- POWER ------------ Makeshift Power Source > --- PROPULSION ------- Light Treads Advanced Treads Advanced Treads > --- UTILITY ---------- Medium Storage Unit Large Storage Unit Large Storage Unit Cloak of Protection > --- WEAPON ----------- Minigun High-powered Shotgun Assault Cannon > --- INVENTORY -------- Flying Fortress v7 Humpback Recoil Stabilizer Maneuvering Thrusters Supersonic Drone Bay Heavy EM Shotgun Datajack [Rating: 36] Favorites ----------- Power Ion Engine Engine Ion Engine Power Core Light Nuclear Core Propulsion Light Treads Treads Light Treads Utility Large Storage Unit Device Cloak of Protection Storage Large Storage Unit Protection Light Armor Plating Weapon Light Assault Rifle Energy Gun Heavy EM Shotgun Energy Cannon EM Pulse Cannon Ballistic Gun Light Assault Rifle Ballistic Cannon Assault Cannon Special Melee Weapon Datajack Build | -11 -10 -9 -9 -9 -8 -8 -8 ------- Run | Scr Mat Mat Min Exi Min Mat Gar Slots Evolved 5 | . 1 2 . . . 2 . Power 1 | . . 1 . . . . . Propulsion 1 | . . . . . . 1 . Utility 2 | . . 1 . . . 1 . Weapon 1 | . 1 . . . . . . Parts Attached 33 | 8 3 2 2 3 1 13 1 Power 5 | 1 . 1 1 . 1 1 . Engine 4 | 1 . 1 1 . 1 . . Core 1 | . . . . . . 1 . Reactor . | . . . . . . . . Propulsion 5 | 2 . . . . . 3 . Treads 5 | 2 . . . . . 3 . Leg . | . . . . . . . . Wheel . | . . . . . . . . Hover . | . . . . . . . . Flight . | . . . . . . . . Utility 11 | 3 2 1 . 2 . 3 . Device 3 | . . . . . . 3 . Storage 5 | 1 2 . . 2 . . . Processor . | . . . . . . . . Hackware . | . . . . . . . . Protection 3 | 2 . 1 . . . . . Artifact . | . . . . . . . . Weapon 12 | 2 1 . 1 1 . 6 1 Energy Gun 2 | . . . . . . 2 . Energy Cannon 2 | . . . 1 . . 1 . Ballistic Gun 6 | 2 1 . . 1 . 2 . Ballistic Cannon 1 | . . . . . . 1 . Launcher . | . . . . . . . . Special Weapon . | . . . . . . . . Impact Weapon . | . . . . . . . . Slashing Weapon . | . . . . . . . . Piercing Weapon . | . . . . . . . . Special Melee Weapon 1 | . . . . . . . 1 Unidentified Prototypes 1 | . . . . . . 1 . Parts Lost 14 | . . . 1 . . 10 3 Power 3 | . . . . . . 3 . Propulsion 2 | . . . . . . 2 . Utility 4 | . . . 1 . . 2 1 Weapon 5 | . . . . . . 3 2 Highest Loss Streak 3 | . . . 1 . . 2 3 Average Slot Usage (%) 85 | . 100 100 95 96 99 75 40 Engine 12 | . 12 20 20 20 19 6 . Treads 17 | . 25 20 20 20 20 16 . Device 3 | . . . . . . 7 7 Storage 24 | . 22 20 20 26 30 25 25 Protection 1 | . 2 10 5 . . . . Energy Gun 1 | . . . . . . 2 . Energy Cannon 3 | . . . 4 10 10 . 7 Ballistic Gun 17 | . 37 30 25 20 20 10 . Ballistic Cannon 2 | . . . . . . 5 . Naked Turns . | . . . . . . . . Heaviest Build 64 | 18 41 49 49 57 56 64 47 Greatest Support 64 | 40 40 40 40 40 40 64 3 Greatest Overweight (x) 16 | . 1 1 1 1 1 16 15 Average Overweight (x) 1 | . . 1 1 1 1 4 14 Largest Inventory Capacity 20 | 8 16 16 16 20 20 20 20 Average Capacity 18 | 7 13 16 16 17 20 20 20 Most Carried 12 | 4 4 2 3 11 12 12 8 Average Carried 7 | 1 2 . 2 4 11 10 7 Final Capacity 20 | 8 16 16 16 20 20 20 20 Final Carried 11 | 3 2 2 3 11 11 8 7 Class Distribution -------------------- 37% | Hacker-Skirmisher 27% | Hacker-Gunner 19% | Hacker-Mutant 16% | Hacker-Tank Dominant Class ---------------- Hacker-Gunner | -10/Materials Hacker-Tank | -9/Materials Hacker-Tank | -9/Mines Hacker-Gunner | -9/Exiles Hacker-Skirmisher | -8/Mines Hacker-Skirmisher | -8/Materials Hacker-Mutant | -8/Garrison Resources | -11 -10 -9 -9 -9 -8 -8 -8 ----------- Run | Scr Mat Mat Min Exi Min Mat Gar Matter Collected 1228 | 166 123 181 118 . 62 578 . Remotely . | . . . . . . . . Salvage Created 2228 | . . 491 515 . 185 1021 16 Parts 152 | . . 42 31 . 14 62 3 Haulers Intercepted . | . . . . . . . . Recyclers Shooed 1 | . . . . . . 1 . Parts Field Recycled . | . . . . . . . . Retrieved Matter . | . . . . . . . . Parts Self-Destructed . | . . . . . . . . Prevented . | . . . . . . . . Kills | -11 -10 -9 -9 -9 -8 -8 -8 ------- Run | Scr Mat Mat Min Exi Min Mat Gar Combat Hostiles Destroyed 64 | . . 14 14 . 6 29 1 Guns 40 | . . 14 8 . 1 17 . Cannons 21 | . . . 6 . 4 10 1 AOE 2 | . . . . . 1 1 . Classes Destroyed 10 | . . 4 2 . . 4 . Worker 2 | . . . . . . 2 . Builder 2 | . . . . . . 2 . Tunneler 1 | . . 1 . . . . . Watcher 1 | . . . . . . 1 . Swarmer 28 | . . 5 6 . 4 12 1 Grunt 22 | . . 7 5 . 2 8 . Brawler 1 | . . . 1 . . . . Duelist 2 | . . . 2 . . . . Sentry 10 | . . 2 . . . 8 . Hunter 1 | . . . . . . 1 . Best Kill Streak 6 | . . 6 4 . 2 6 1 Combat Bots Only 6 | . . 6 4 . 2 5 1 Max Kills in Single Turn 2 | . . 1 2 . 2 2 1 Gunslinging . | . . . . . . . . Exploded 1 | . . . . . 1 1 . Melee . | . . . . . . . . Uniques/NPCs Destroyed . | . . . . . . . . Combat | -11 -10 -9 -9 -9 -8 -8 -8 -------- Run | Scr Mat Mat Min Exi Min Mat Gar Damage Taken 3362 | . . 361 222 . 143 1983 653 Core 618 | . . 27 34 . 5 277 275 Absorbed by Shields . | . . . . . . . . Core Remaining (%) 94 | 100 100 . . . 83 . . Volleys Fired 136 | . . 28 23 . 11 69 5 Largest 3 | . . 3 3 . 3 3 1 Hottest 115 | . . 60 103 . 103 115 60 Shots Fired 349 | . . 84 69 . 33 158 5 Gun 268 | . . 84 57 . 22 105 . Cannon 81 | . . . 12 . 11 53 5 Launcher . | . . . . . . . . Special . | . . . . . . . . Kinetic 297 | . . 84 57 . 22 134 . Thermal 13 | . . . . . . 8 5 Explosive . | . . . . . . . . Electromagnetic 39 | . . . 12 . 11 16 . Robot Hit Streak 48 | . . 26 40 . 21 48 2 Robot Miss Streak 3 | . . 3 1 . 1 3 2 Penetration Max . | . . . . . . . . Secondary Targets 8 | . . 5 2 . . 1 . Max Gunslinging Chain 1 | . . 1 1 . . 1 . Shots Hit Robots 270 | . . 63 51 . 22 131 3 Core Hits 115 | . . 29 23 . 9 53 1 Critical Hits 3 | . . . . . . 3 . Critical Kills . | . . . . . . . . Critical Parts Destroyed 3 | . . . . . . 3 . Melee Attacks 1 | . . . . . . . 1 Impact . | . . . . . . . . Slashing . | . . . . . . . . Piercing . | . . . . . . . . Sneak Attacks . | . . . . . . . . Combat Hostiles . | . . . . . . . . Follow-up Attacks . | . . . . . . . . Damage Inflicted 4088 | . . 616 650 . 391 2387 44 Guns 2533 | . . 616 419 . 85 1413 . Cannons 1476 | . . . 226 . 243 963 44 Explosions 63 | . . . . . 63 . . Melee . | . . . . . . . . Ramming 16 | . . . 5 . . 11 . Kinetic 3080 | . . 616 419 . 85 1960 . Thermal 258 | . . . . . 63 151 44 Explosive . | . . . . . . . . Electromagnetic 734 | . . . 226 . 243 265 . Impact . | . . . . . . . . Slashing . | . . . . . . . . Piercing . | . . . . . . . . Highest Corruption . | . . . . . . . . Average Corruption . | . . . . . . . . Corruption Purged . | . . . . . . . . Overload Shots . | . . . . . . . . Overflow Damage 10 | . . . . . . 10 . Projectiles 10 | . . . . . . 10 . Explosions . | . . . . . . . . Melee . | . . . . . . . . Knockbacks 4 | . . . . . . 4 . Impact . | . . . . . . . . Kinetic 4 | . . . . . . 4 . Secondary . | . . . . . . . . Self-Inflicted Damage . | . . . . . . . . Shots . | . . . . . . . . Rammed 4 | . . . 1 . . 3 . Targets Rammed 5 | . . . 1 . . 4 . Kicked . | . . . . . . . . Crushed 1 | . . . . . . 1 . Highest Temperature 416 | . . 288 204 . 369 416 . Average Temperature 100 | . . 117 73 . 150 90 . Received Heat Transfer 1719 | . . 246 69 . 81 1017 306 Effects 3 | . . . . . 2 1 . Shutdowns 1 | . . . . . . 1 . Energy Bleed 1 | . . . . . 1 . . Interference 1 | . . . . . 1 . . Siege Activations . | . . . . . . . . Robots Corrupted 1 | . . . . . . 1 . Combat Hostiles 1 | . . . . . . 1 . Parts Fried 2 | . . . . . 1 1 . Impact Corruptions . | . . . . . . . . Robots Melted . | . . . . . . . . Combat Hostiles . | . . . . . . . . Parts Melted . | . . . . . . . . Heat Transferred 333 | . . . . . . 259 74 Parts Sabotaged . | . . . . . . . . Parts Stolen . | . . . . . . . . Parts Stripped . | . . . . . . . . Power Chain Reactions 1 | . . . . . 1 . . Missiles Intercepted . | . . . . . . . . Alert | -11 -10 -9 -9 -9 -8 -8 -8 ------- Run | Scr Mat Mat Min Exi Min Mat Gar Peak Influence 234 | . 15 234 158 . 100 229 114 Average Influence 35 | . 7 45 49 . 31 34 19 Maximum Alert Level 1 | . . 1 . . . 1 . Low Security (%) 97 | 100 100 94 100 . 100 95 100 Level 1 2 | . . 5 . . . 4 . Level 2 . | . . . . . . . . Level 3 . | . . . . . . . . Level 4 . | . . . . . . . . Level 5 . | . . . . . . . . High Security . | . . . . . . . . Max Security . | . . . . . . . . Squads Dispatched 9 | . . 3 . . . 6 . Investigation 1 | . . . . . . 1 . Extermination . | . . . . . . . . Reinforcement 4 | . . 3 . . . 1 . Assault . | . . . . . . . . Garrison 4 | . . . . . . 4 . Intercept . | . . . . . . . . Construction Impeded . | . . . . . . . . Haulers Reinforced . | . . . . . . . . Stealth | -11 -10 -9 -9 -9 -8 -8 -8 --------- Run | Scr Mat Mat Min Exi Min Mat Gar Distress Signals 5 | . 1 2 . . . 2 . Communications Jammed . | . . . . . . . . Distress Signals . | . . . . . . . . Times Spotted 104 | . 2 20 14 . 6 56 6 Peak Tracking Total 7 | . 2 7 4 . 2 4 4 Tactical Retreats 11 | . 1 . . . . 10 . Traps | -11 -10 -9 -9 -9 -8 -8 -8 ------- Run | Scr Mat Mat Min Exi Min Mat Gar Traps Triggered . | . . . . . . . . Indirectly . | . . . . . . . . Trap Hack Attempts . | . . . . . . . . Triggered . | . . . . . . . . Disarmed . | . . . . . . . . Reprogrammed 5 | . . . . . . 5 . Reused 3 | . . . . . . 3 . Traps Extracted . | . . . . . . . . Installed . | . . . . . . . . Triggered 3 | . . . . . . 3 . Machines | -11 -10 -9 -9 -9 -8 -8 -8 ---------- Run | Scr Mat Mat Min Exi Min Mat Gar Machines Disabled 3 | . . . 2 . . 1 . Max in Single Turn 1 | . . . 1 . . 1 . Machines Sabotaged . | . . . . . . . . Garrisons Compromised . | . . . . . . . . Overloaded Fab Kills . | . . . . . . . . Fab Network Shutdowns . | . . . . . . . . Hacking | -11 -10 -9 -9 -9 -8 -8 -8 --------- Run | Scr Mat Mat Min Exi Min Mat Gar Machines Accessed 12 | . 2 . . 5 . 5 . Terminals 5 | . 1 . . . . 4 . Fabricators . | . . . . . . . . Repair Stations . | . . . . . . . . Recycling Units 1 | . 1 . . . . . . Scanalyzers . | . . . . . . . . Garrison Access 1 | . . . . . . 1 . Total Hacks 76 | . 7 . . 49 . 20 . Successful 69 | . 4 . . 49 . 16 . Failed 7 | . 3 . . . . 4 . Catastrophic . | . . . . . . . . Database Lockouts . | . . . . . . . . Manual 3 | . . . . 2 . 1 . Terminals 21 | . 3 . . . . 18 . Fabricators . | . . . . . . . . Repair Stations . | . . . . . . . . Recycling Units 4 | . 4 . . . . . . Scanalyzers . | . . . . . . . . Garrison Access 2 | . . . . . . 2 . Terminal Hacks 64 | . 1 . . 49 . 14 . Record 53 | . 1 . . 48 . 4 . Unreport Threat 1 | . . . . . . 1 . Reprogram Traps 2 | . . . . . . 2 . Dispatch Records 1 | . . . . . . 1 . Surveillance Status 1 | . . . . . . 1 . Investigation Status 1 | . . . . . . 1 . Reinforcement Status 1 | . . . . . . 1 . Hauler Manifests 3 | . . . . . . 3 . EX-Prototype ID Bank 1 | . . . . 1 . . . Fabricator Hacks . | . . . . . . . . Repair Station Hacks . | . . . . . . . . Recycling Unit Hacks 3 | . 3 . . . . . . Recycle Component 1 | . 1 . . . . . . Process 1 | . 1 . . . . . . Report Inventory 1 | . 1 . . . . . . Scanalyzer . | . . . . . . . . Garrison Access Hacks 2 | . . . . . . 2 . Unlock Access 1 | . . . . . . 1 . Coupler Status 1 | . . . . . . 1 . Unauthorized Hacks . | . . . . . . . . Terminals . | . . . . . . . . Fabricators . | . . . . . . . . Repair Stations . | . . . . . . . . Recycling Units . | . . . . . . . . Scanalyzers . | . . . . . . . . Garrison Access . | . . . . . . . . Data Cores Recovered . | . . . . . . . . Used . | . . . . . . . . Hacking Detections 6 | . 2 . . . . 4 . Full Trace Events 1 | . . . . . . 1 . Feedback Events . | . . . . . . . . Feedback Blocked . | . . . . . . . . Robot Schematics Acquired . | . . . . . . . . Robots Built . | . . . . . . . . Matter . | . . . . . . . . Time . | . . . . . . . . Total Robot Build Rating . | . . . . . . . . Part Schematics Acquired . | . . . . . . . . Parts Built . | . . . . . . . . Matter . | . . . . . . . . Time . | . . . . . . . . Total Part Build Rating . | . . . . . . . . Parts Repaired . | . . . . . . . . Time . | . . . . . . . . Parts Recycled 1 | . 1 . . . . . . Recycled Matter 37 | . 37 . . . . . . Retrieved Matter . | . . . . . . . . Retrieved Components . | . . . . . . . . Parts Scanalyzed . | . . . . . . . . Part Schematics Acquired . | . . . . . . . . Parts Damaged . | . . . . . . . . Bothacking | -11 -10 -9 -9 -9 -8 -8 -8 ------------ Run | Scr Mat Mat Min Exi Min Mat Gar Used RIF Installer . | . . . . . . . . Robots Hacked 1 | . . . . . . . 1 Non-combat . | . . . . . . . . Combat 1 | . . . . . . . 1 Robot Hacks Applied 1 | . . . . . . . 1 parse_system 1 | . . . . . . . 1 Relay Couplers Released . | . . . . . . . . Robots Rewired . | . . . . . . . . Allies Hacked . | . . . . . . . . Hacks Repelled . | . . . . . . . . Allies | -11 -10 -9 -9 -9 -8 -8 -8 -------- Run | Scr Mat Mat Min Exi Min Mat Gar Total Allies . | . . . . . . . . Largest Group . | . . . . . . . . Highest-Rated Group . | . . . . . . . . Highest-Rated Ally . | . . . . . . . . Total Orders . | . . . . . . . . Ally Attacks . | . . . . . . . . Total Damage . | . . . . . . . . Kills . | . . . . . . . . Allies Corrupted . | . . . . . . . . Allies Melted . | . . . . . . . . Intel | -11 -10 -9 -9 -9 -8 -8 -8 ------- Run | Scr Mat Mat Min Exi Min Mat Gar Robot Analysis Total . | . . . . . . . . Derelict Logs Recovered . | . . . . . . . . Drone Launches 1 | . . . . . . 1 . Drone Recoveries . | . . . . . . . . Exploration | -11 -10 -9 -9 -9 -8 -8 -8 ------------- Run | Scr Mat Mat Min Exi Min Mat Gar Turns Passed 10013 | 107 377 546 1643 1673 816 4445 406 Spaces Moved 3449 | 61 217 251 871 924 427 652 46 Core 229 | 8 . . . . . 175 46 Treads 3220 | 53 217 251 871 924 427 477 . Legs . | . . . . . . . . Wheels . | . . . . . . . . Hover . | . . . . . . . . Flight . | . . . . . . . . Fastest Speed 50 | 50 160 180 180 180 180 150 700 Average Speed 214 | 145 171 180 180 180 180 325 795 Slowest Speed 850 | 160 180 180 180 180 180 850 800 Overloaded Moves . | . . . . . . . . Propulsion Burnouts . | . . . . . . . . Robots Hopped . | . . . . . . . . Cave-ins Triggered . | . . . . . . . . Exploration Rate (%) 51 | 4 35 23 99 94 74 61 24 Regions Visited 7 Branch Regions 3 Pre-discovered Areas 2 | . . . 1 1 . . . Known Exits Taken 7 | 1 1 1 1 1 1 1 . Unknown Exits Taken . | . . . . . . . . Scrap Searched . | . . . . . . . . Spaces Dug . | . . . . . . . . Terrain Destroyed 11 | . . . . . 6 5 . Melee . | . . . . . . . . Projectile 5 | . . . . . . 5 . AOE 6 | . . . . . 6 . . Actions | -11 -10 -9 -9 -9 -8 -8 -8 --------- Run | Scr Mat Mat Min Exi Min Mat Gar Total 5826 | 80 223 294 901 936 455 2857 80 Wait 2149 | 1 . 12 1 . 15 2093 27 Move 3443 | 60 216 250 870 923 426 652 46 Hop . | . . . . . . . . Pick Up 38 | 10 2 2 2 7 1 14 . Fast Attach . | . . . . . . . . Attach 32 | 8 3 2 1 3 1 13 1 Detach 4 | 1 1 . 1 1 . . . Swap 1 | . . . 1 . . . . Drop 17 | . 1 . 1 2 1 12 . Fire 136 | . . 28 23 . 11 69 5 Melee 1 | . . . . . . . 1 Ram 1 | . . . . . . 1 . Kick . | . . . . . . . . Crush 4 | . . . 1 . . 3 . Escape Stasis . | . . . . . . . . Rewire . | . . . . . . . . Trap . | . . . . . . . . Miscellaneous . | . . . . . . . . Route ------- -11/Scrapyard -10/Materials -9/Materials -9/Mines (discovered 3 exits: *Mat x2 / *Exi) -9/Exiles (discovered 2 exits: *Min x2) -8/Mines -8/Materials -8/Garrison History --------- Turn | Location | Event 3 | -11/Scrapyard | Identified exit to Materials 3 | -11/Scrapyard | Discovered exit to Materials (range 15) 108 | -11/Scrapyard | Entered Materials 108 | -10/Materials | Evolved 1 slot: Weapon x1 449 | -10/Materials | Identified exit to Materials 449 | -10/Materials | Discovered exit to Materials (range 16) 485 | -10/Materials | Entered another Materials area 485 | -9/Materials | Evolved 2 slots: Power x1, Utility x1 773 | -9/Materials | Build established: Hacker-Tank 947 | -9/Materials | Identified exit to Mines 947 | -9/Materials | Discovered exit to Mines (range 16) 1031 | -9/Materials | Entered Mines 1211 | -9/Mines | Identified exit to Materials 1211 | -9/Mines | Discovered exit to Materials (range 7) 1294 | -9/Mines | Discovered exit to Materials (range 9) 1448 | -9/Mines | Learned location of Storage (-9) 1731 | -9/Mines | Deemed a non-threat by the Exiles lab entrance 1733 | -9/Mines | Identified exit to Exiles 1733 | -9/Mines | Discovered exit to Exiles (range 5) 2194 | -9/Mines | Build established: Hacker-Gunner 2674 | -9/Mines | Entered Exiles 2719 | -9/Exiles | Identified exit to Mines 2719 | -9/Exiles | Discovered exit to Mines (range 15) 2745 | -9/Exiles | Met 8R-AWN 2815 | -9/Exiles | Met EX-HEX 2932 | -9/Exiles | Met EX-DEC 3000 | -9/Exiles | Learned location of Zion (-7) 3115 | -9/Exiles | Discovered exit to Mines (range 12) 3408 | -9/Exiles | Visited The Gauntlet 3933 | -9/Exiles | Met EX-BIN 3999 | -9/Exiles | Aligned with FarCom system 4001 | -9/Exiles | Given EX-Vault access code 4078 | -9/Exiles | Opened EX-Vault 4089 | -9/Exiles | Found Prototype Device 4094 | -9/Exiles | Found Prototype Device 4106 | -9/Exiles | Identified Supersonic Drone Bay 4129 | -9/Exiles | Found Flying Fortress v7 4156 | -9/Exiles | Exiles lab attacked by MAIN.C 4347 | -9/Exiles | Stole three prototypes: Flying Fortress v7, Cloak of Protection, Supersonic Drone Bay 4347 | -9/Exiles | Entered Mines 4649 | -8/Mines | Build established: Hacker-Skirmisher 5054 | -8/Mines | Discovered exit to Materials (range 14) 5163 | -8/Mines | Entered Materials 5163 | -8/Materials | Evolved 2 slots: Propulsion x1, Utility x1 8024 | -8/Materials | Garrison activated, responded to threat 8467 | -8/Materials | Build established: Hacker-Mutant 9345 | -8/Materials | Garrison activated, responded to threat 9565 | -8/Materials | Core integrity fell below 50% 9608 | -8/Materials | Identified exit to Garrison 9608 | -8/Materials | Entered Garrison 9946 | -8/Garrison | Triggered checkpoint 9952 | -8/Garrison | Triggered checkpoint 9976 | -8/Garrison | Triggered checkpoint 9997 | -8/Garrison | Core integrity fell below 20% 10014 | -8/Garrison | Destroyed by G-47 Trooper with Particle Gun Last Messages --------------- 09608_ Receiving FarCom transmissions... 09946_ Beams of light sweep through the air. An alarm sounds. 09956_ Penetrated by Slug. 09956_ S-10 Pest destroyed. 09962_ Slug penetrates Wall. 09965_ Penetrated by Slug. 09968_ Ion Cannon destroyed. 09971_ S-10 Pest destroyed. 09974_ Slug penetrates Wall. 09976_ Beams of light sweep through the air. An alarm sounds. 09980_ Penetrated by Slug. 09985_ Jacked G-47 Trooper... >>parse_system Reading system data... 09991_ Datajack destroyed. 09993_ Penetrated by Slug. 09996_ Supersonic Drone Bay destroyed. 09999_ Penetrated by Slug. 10000_ ALERT: Garrison interior compromised. 10008_ Penetrated by Slug. Map ----- +----------------------------------------------------+ | ?????????????????????????????????????????????????? | | ?????????????????????????????????????????????????? | | ?????????????????????????????????????????????????? | | ?????????????????????????????????????????????????? | | ?????????????????????????????????????????????????? | | ?????????????????????????????????????????????????? | | ?????????????????????????????????????????????????? | | ?????????????????????????????????????????????????? | | ?????????????????????????????????????????????????? | | ?????????????????????????????????????????????????? | | ?????????????????????????????????????????????????? | | ?????????????????????????????????????????????????? | | ??????????????????????????? #??????????????????? | | ???????????????????#??????? #??????????????????? | | ???????????????#??? ??????? #??????????????????? | | ???????????????# ??? ?????? #??????????????????? | | ???????????????# ?? ?????? #??????????????????? | | ???????????????# ?# ????? #??????????????????? | | ?????????????### ## ????# ###????????????????? | | ?????????????# ??? #????????????????? | | ?????????????? ??? #????????????????? | | ???????????????? h = ?? #????????????????? | | ?????????????????? % ?? ?????????????????? | | ???????????????#????#* *?# #??????????????????? | | ?????????????### ## =%## g ##########?????????? | | ?????????? [@ g #?????????? | | ?????????? #?????????? | | ?????????????### g ####### #?????????? | | ???????????????###### ## ##?????? #?????????? | | ????????????????????# ?# #??????# #?????????? | | ????????????????????#####?# #??????# #?????????? | | ??????????????????????????# #??????# #?????????? | | ??????????????????????????# #??????# ^#?????????? | | ??????????????????????????# #??????# ^#?????????? | | ??????????????????????????# #??????# #?????????? | | ??????????????????????????# ######## #?????????? | | ??????????????????????????# ##### #???? | | ??????????????????????????# #???? | | ??????????????????????????########### #######???? | | ????????????????????????????????????# #?????????? | | ????????????????????????????????????# #?????????? | | ????????????????????????????????????# #?????????? | | ????????????????????????????????????# #?????????? | | ????????????????????????????????????# #?????????? | | ????????????????????????????????????# ########### | | ????????????????????????????????????# | | ????????????????????????????????????# | | ????????????????????????????????????############# | | ????????????????????????????????????????????????# | | ????????????????????????????????????????????????## | +----------------------------------------------------+ Best States ------------- Heat Dissipation 31 Energy Generation 20 Energy Capacity 400 Matter Stores 300 Matter Capacity 300 Sight Range 16 Terrain Scan Density 10 Cloak Strength 5 Armor Coverage 150 Resistance: KI 35 Resistance: TH 35 Resistance: EX 35 Resistance: EM 35 Resistance: I 35 Resistance: S 35 Resistance: P 35 Propulsion Shielding 33 Evasion (%) 40 Recoil Reduction 3 Offensive Hacking 20 Item Schematics ----------------- None Robot Schematics ------------------ None Fabricated ------------ Nothing Alien Tech Used ----------------- None Achievements -------------- None Challenges ------------ None Game ------ Seed VortexSalvageInsulator Manual? 0 Play Time 00:55:05 Cumulative 21.5 hours Start 2020.06.16 @ 12:54:03 End 2020.06.16 @ 14:28:49 Sessions 3 Manual Loads 0 Difficulty Explorer Special Mode None Game No. 88 Rogue 83 Adventurer 0 Explorer 5 Win Type - Total 0 Types 0/0/0/0/0/0/0 Lore% 21 Gallery% 18 Achievement% 17 Wizard Run 0 Options --------- ASCII 0 Keyboard 0 Movement Arrows Keybinds 0 Fullscreen 1 Font 18/X11 Map View 76x50 Tactical HUD 1 Map Filters NONE Filters NONE Steam 1 RUN: 6f198880-469f-4099-8387-c1b382191643